bitfinex-derivatives/quotes_BTCF0:USTF0_20260214
["timestamp","ask_amount","ask_price","bid_price","bid_amount"]
[1771050466821,0.11025749,68906.0,68897.0,0.65112734]
[1771050467126,0.07256157,68898.0,68894.0,0.014522]
[1771050467319,0.07256157,68898.0,68894.0,0.014523]
[1771050469421,0.07256157,68898.0,68893.0,0.029083]
[1771050469725,0.07256157,68898.0,68893.0,0.01456]
[1771050469923,0.07256157,68898.0,68888.0,0.1452]
[1771050469924,0.07456157,68898.0,68894.0,0.01456]
[1771050470426,0.014522,68896.0,68885.0,0.1452]
[1771050470632,0.014522,68896.0,68886.0,0.01456]
[1771050471322,0.014522,68897.0,68886.0,0.01456]
[1771050471521,0.02432951,68897.0,68886.0,0.01456]
[1771050471932,0.00980751,68897.0,68886.0,0.029084]
[1771050472436,0.00980751,68897.0,68887.0,0.014524]
[1771050472632,0.07256157,68891.0,68887.0,0.014524]
[1771050473833,0.07256157,68891.0,68886.0,0.01456]
[1771050474022,0.07856157,68891.0,68887.0,0.006]
[1771050474225,0.07856157,68891.0,68886.0,0.01456]
[1771050474827,0.01456,68893.0,68890.0,0.014523]
[1771050475031,0.01456,68893.0,68891.0,0.014523]
[1771050475231,0.01456,68893.0,68886.0,0.029084]
[1771050475232,5.4e-07,68888.0,68886.0,0.029084]
[1771050475529,0.11874156,68902.0,68891.0,0.014523]
[1771050475734,7.3e-07,68890.0,68889.0,0.014524]
[1771050475930,0.10422056,68902.0,68891.0,0.014523]
[1771050476131,0.05505527,68891.0,68889.0,0.014524]
[1771050476443,4.2e-07,68891.0,68889.0,0.014524]
[1771050476737,0.01456,68897.0,68890.0,0.014523]
[1771050476932,6e-07,68892.0,68890.0,0.014523]
[1771050477125,0.01456,68899.0,68896.0,0.014522]
[1771050477329,0.014519,68909.0,68897.0,0.014522]
[1771050477532,0.01456,68908.0,68896.0,0.01456]
[1771050477728,0.01456,68908.0,68897.0,0.014522]
[1771050477928,0.01295895,68910.0,68899.0,0.014521]
[1771050478131,0.00656,68907.0,68897.0,0.014522]
[1771050478326,0.01897849,68901.0,68899.0,0.014521]
[1771050478526,0.00656,68907.0,68899.0,0.014521]
[1771050478732,0.14524,68910.0,68899.0,0.014521]
[1771050478733,0.07256789,68901.0,68899.0,0.014521]
[1771050478938,0.02598687,68901.0,68899.0,0.029042]
[1771050479237,0.00686687,68901.0,68899.0,0.014521]
[1771050479431,0.05718687,68910.0,68899.0,0.014521]
[1771050479636,0.07456789,68901.0,68900.0,0.014521]
[1771050479835,0.04879789,68901.0,68899.0,0.015]
[1771050480041,0.002,68901.0,68899.0,0.022521]
[1771050480238,0.01456,68909.0,68899.0,0.022521]
[1771050480433,0.07256578,68903.0,68900.0,0.014521]
[1771050480935,0.07256578,68903.0,68899.0,0.033081]
[1771050482034,0.07256578,68903.0,68899.0,0.029081]
[1771050482938,0.07256578,68903.0,68899.0,0.01456]
[1771050483141,0.07256578,68903.0,68898.0,0.01456]
[1771050483341,0.07256578,68903.0,68895.0,0.014522]
[1771050483538,0.07256578,68903.0,68892.0,0.014523]
[1771050483739,0.07256578,68903.0,68895.0,0.014522]
[1771050484039,0.07256578,68903.0,68893.0,0.014523]
[1771050484040,0.07256578,68903.0,68894.0,0.014523]
[1771050484235,0.07256578,68903.0,68895.0,0.01456]
[1771050485041,0.07756578,68903.0,68895.0,0.01456]
[1771050485641,0.07956578,68903.0,68895.0,0.01456]
[1771050485945,0.07956578,68903.0,68894.0,0.014523]
[1771050486145,0.07256578,68903.0,68894.0,0.01456]
[1771050486546,0.07256578,68903.0,68892.0,0.029083]
[1771050487045,0.07256578,68903.0,68893.0,0.014523]
[1771050487246,0.07856578,68903.0,68894.0,0.014523]
[1771050487746,0.07256578,68903.0,68894.0,0.014523]
[1771050488637,0.07956578,68903.0,68894.0,0.014523]
[1771050488843,0.09256578,68903.0,68894.0,0.014523]
[1771050489449,0.08556578,68903.0,68894.0,0.014523]
[1771050489944,0.07956578,68903.0,68894.0,0.014523]
[1771050491649,0.07956578,68903.0,68896.0,0.014522]
[1771050492948,0.07956578,68903.0,68898.0,0.014522]
[1771050494953,0.07256578,68903.0,68898.0,0.014522]
[1771050496155,0.07256578,68903.0,68898.0,0.019522]
[1771050497859,0.07114578,68903.0,68898.0,0.019522]
[1771050498162,0.06972578,68903.0,68898.0,0.019522]
[1771050498458,0.01456,68905.0,68898.0,0.019522]
[1771050498761,0.05305029,68897.0,68896.0,0.014522]
[1771050498961,0.01456,68905.0,68897.0,0.014522]
[1771050499260,8.2e-07,68897.0,68896.0,0.014522]
[1771050499461,0.01456,68905.0,68899.0,0.014521]
[1771050499763,8.9e-07,68897.0,68896.0,0.12376774]
[1771050499961,0.01456,68905.0,68896.0,0.11424574]
[1771050500164,0.04198285,68914.0,68896.0,0.11424574]
[1771050500165,6.8e-07,68897.0,68896.0,0.11424574]
[1771050500352,0.14524,68911.0,68898.0,0.12370542]
[1771050500553,0.01456,68911.0,68903.0,0.014521]
[1771050500757,0.07256232,68906.0,68904.0,0.01452]
[1771050500952,0.07256232,68906.0,68903.0,0.029081]
[1771050501156,0.07256232,68906.0,68903.0,0.01456]
[1771050502057,0.07456232,68906.0,68903.0,0.01456]
[1771050502965,0.07456232,68906.0,68903.0,0.029081]
[1771050503153,0.07456232,68906.0,68903.0,0.01456]
[1771050503657,0.07256232,68906.0,68903.0,0.01656]
[1771050504854,0.07856232,68906.0,68903.0,0.01456]
[1771050505563,0.06020232,68906.0,68903.0,0.01456]
[1771050505865,0.05420232,68906.0,68903.0,0.01956]
[1771050506168,0.03584232,68906.0,68903.0,0.01956]
[1771050506464,0.01456,68912.0,68903.0,0.01956]
[1771050506664,0.07256449,68904.0,68903.0,0.01956]
[1771050506866,0.01456,68912.0,68903.0,0.034081]
[1771050507169,0.07256255,68906.0,68903.0,0.034081]
[1771050507359,0.07256255,68906.0,68903.0,0.01956]
[1771050507865,0.07256255,68906.0,68903.0,0.01456]
[1771050508565,0.07256255,68906.0,68903.0,0.029081]
[1771050508764,0.07256255,68906.0,68903.0,0.035081]
[1771050508966,0.07256255,68906.0,68903.0,0.02056]
[1771050510979,0.07256255,68906.0,68903.0,0.01456]
[1771050511177,0.07356255,68906.0,68903.0,0.01456]
[1771050511574,0.01456,68912.0,68903.0,0.01456]
[1771050511973,0.07256262,68906.0,68903.0,0.01456]
[1771050512176,0.08056262,68906.0,68903.0,0.01456]
[1771050512676,0.07256262,68906.0,68903.0,0.01456]
[1771050512877,0.07256262,68906.0,68903.0,0.029081]
[1771050513080,0.01456,68912.0,68904.0,0.01452]
[1771050513277,0.01456,68912.0,68905.0,0.01452]
[1771050513474,0.07256262,68906.0,68905.0,0.01452]
[1771050513677,0.07256262,68906.0,68904.0,0.01452]
[1771050514079,0.06956262,68906.0,68904.0,0.01452]
[1771050514679,0.06647262,68906.0,68903.0,0.029081]
[1771050514875,0.06647262,68906.0,68901.0,0.014521]
[1771050515179,0.05937262,68906.0,68904.0,0.002]
[1771050515380,0.05937262,68906.0,68905.0,0.01456]
[1771050515580,0.05745262,68906.0,68905.0,0.01456]
[1771050515782,0.01456,68913.0,68905.0,0.01456]
[1771050516082,0.07256262,68906.0,68905.0,0.01456]
[1771050516881,0.07556262,68906.0,68905.0,0.01456]
[1771050517682,0.07556262,68906.0,68899.0,0.014521]
[1771050518281,0.07556262,68906.0,68900.0,0.014521]
[1771050518477,0.07256262,68906.0,68901.0,0.01456]
[1771050519177,0.07556262,68906.0,68901.0,0.01456]
[1771050519683,0.07256262,68906.0,68901.0,0.01456]
[1771050519883,0.07656262,68906.0,68901.0,0.01456]
[1771050521587,0.07256262,68906.0,68901.0,0.01456]
[1771050522086,0.07456262,68906.0,68901.0,0.01456]
[1771050522274,0.07656262,68906.0,68902.0,0.01456]
[1771050524785,0.07456262,68906.0,68902.0,0.01456]
[1771050525287,0.07256262,68906.0,68902.0,0.01856]
[1771050528792,0.07256262,68906.0,68902.0,0.01456]
[1771050528992,0.07256262,68906.0,68902.0,0.02456]
[1771050530092,0.07256262,68906.0,68901.0,0.02561171]
[1771050530284,0.07256262,68906.0,68901.0,0.01452]
[1771050531696,0.07256262,68906.0,68902.0,0.01]
[1771050532196,0.07256262,68906.0,68901.0,0.02352]
[1771050532788,0.07256262,68906.0,68902.0,0.01452]
[1771050532994,0.07256262,68906.0,68902.0,0.02352]
[1771050533397,0.07256262,68906.0,68902.0,0.01452]
[1771050534298,0.05353262,68906.0,68902.0,0.01452]
[1771050534795,0.03450262,68906.0,68902.0,0.01452]
[1771050534993,0.01647262,68906.0,68902.0,0.01452]
[1771050535391,0.02652162,68910.0,68902.0,0.01452]
[1771050535597,0.05804715,68902.0,68898.0,0.174284]
[1771050535799,0.01452,68907.0,68902.0,0.001]
[1771050536097,0.07156684,68902.0,68899.0,0.029041]
[1771050536298,0.06388684,68902.0,68899.0,0.029041]
[1771050537297,0.06388684,68902.0,68899.0,0.01452]
[1771050539503,0.01452,68907.0,68900.0,0.014521]
[1771050539700,0.07256683,68902.0,68900.0,0.014521]
[1771050540003,0.04904681,68902.0,68901.0,0.014521]
[1771050540191,0.05404681,68902.0,68901.0,0.014521]
[1771050541001,0.04904681,68902.0,68901.0,0.014521]
[1771050541600,0.01452,68907.0,68901.0,0.014521]
[1771050541801,0.02718684,68902.0,68901.0,0.014521]
[1771050542103,0.02645684,68902.0,68901.0,0.014521]
[1771050542299,0.01699764,68902.0,68901.0,0.014521]
[1771050542504,0.01452,68909.0,68902.0,0.014521]
[1771050542703,0.01379,68909.0,68902.0,0.014521]
[1771050542904,0.05026566,68902.0,68900.0,0.014521]
[1771050543106,6.6e-07,68902.0,68901.0,0.014521]
[1771050543399,0.07256389,68905.0,68902.0,0.014521]
[1771050543704,0.07256389,68905.0,68903.0,0.014521]
[1771050544206,0.07256389,68905.0,68902.0,0.014521]
[1771050544406,0.01452,68909.0,68902.0,0.014521]
[1771050544809,0.01452,68909.0,68903.0,0.001]
[1771050544810,0.07256367,68905.0,68903.0,0.001]
[1771050545105,0.07256367,68905.0,68904.0,0.01452]
[1771050545306,0.01452,68912.0,68905.0,0.01452]
[1771050545508,0.00060368,68912.0,68905.0,0.01452]
[1771050545897,0.01452,68912.0,68905.0,0.01452]
[1771050546097,0.07256127,68907.0,68905.0,0.01452]
[1771050546301,0.07256127,68907.0,68904.0,0.02904]
[1771050546515,0.01452,68912.0,68904.0,0.02904]
[1771050546813,0.07256157,68907.0,68904.0,0.02904]
[1771050548608,0.07356157,68907.0,68904.0,0.02904]
[1771050549809,0.07256157,68907.0,68904.0,0.02904]
[1771050550410,0.06556157,68907.0,68904.0,0.02904]
[1771050550608,0.03656157,68907.0,68904.0,0.02904]
[1771050550904,0.02956157,68907.0,68904.0,0.02904]
[1771050551313,0.02956157,68907.0,68905.0,0.01452]
[1771050551511,0.01452,68912.0,68905.0,0.01452]
[1771050551809,0.06156157,68907.0,68905.0,0.01452]
[1771050552009,0.05919157,68907.0,68905.0,0.01452]
[1771050552413,0.06045157,68907.0,68905.0,0.01452]
[1771050552613,0.05808157,68907.0,68905.0,0.01452]
[1771050553016,0.05734157,68907.0,68905.0,0.01452]
[1771050553209,0.05497157,68907.0,68905.0,0.01452]
[1771050553514,0.02518157,68907.0,68905.0,0.01452]
[1771050553813,0.01452,68912.0,68905.0,0.01452]
[1771050554014,0.07256156,68907.0,68905.0,0.01452]
[1771050554204,0.04856156,68907.0,68905.0,0.01452]
[1771050554714,0.01452,68912.0,68905.0,0.01452]
[1771050555212,0.07256157,68907.0,68905.0,0.01452]
[1771050555414,0.05639157,68907.0,68905.0,0.01452]
[1771050555716,0.05567157,68907.0,68905.0,0.01452]
[1771050556214,0.03848157,68907.0,68905.0,0.01452]
[1771050556615,0.02129157,68907.0,68905.0,0.01452]
[1771050557214,0.00400157,68907.0,68905.0,0.01452]
[1771050557516,0.00328157,68907.0,68905.0,0.01452]
[1771050558110,0.01452,68912.0,68905.0,0.01452]
[1771050558111,0.01452,68913.0,68905.0,0.01452]
[1771050558517,0.06928157,68907.0,68905.0,0.01452]
[1771050559015,0.06600157,68907.0,68905.0,0.01452]
[1771050559217,0.06272157,68907.0,68905.0,0.01452]
[1771050559518,0.06172157,68907.0,68905.0,0.01452]
[1771050559816,0.01452,68913.0,68905.0,0.01452]
[1771050560017,0.00452,68913.0,68905.0,0.01452]
[1771050560316,0.07256157,68907.0,68904.0,0.02904]
[1771050560517,0.06969157,68907.0,68904.0,0.02843583]
[1771050561319,0.06969157,68907.0,68904.0,0.01391583]
[1771050561520,0.06969157,68907.0,68905.0,0.01452]
[1771050561720,0.07369157,68907.0,68905.0,0.01452]
[1771050563818,0.014517,68923.0,68906.0,0.01452]
[1771050564018,0.03560631,68907.0,68906.0,0.01452]
[1771050564213,0.01610159,68920.0,68907.0,0.01452]
[1771050564414,0.14339,68919.0,68907.0,0.01452]
[1771050564614,0.07255789,68910.0,68907.0,0.01452]
[1771050564918,0.01452,68914.0,68905.0,0.01452]
[1771050565215,0.07255679,68912.0,68908.0,0.01452]
[1771050568225,0.01452,68914.0,68905.0,0.02904]
[1771050568530,0.01452,68915.0,68906.0,0.01452]
[1771050568826,0.07255452,68914.0,68908.0,0.014519]
[1771050570735,0.07255452,68914.0,68913.0,0.014519]
[1771050570736,0.06547706,68914.0,68913.0,0.014519]
[1771050570933,0.00886706,68919.0,68914.0,0.014518]
[1771050571239,0.00886706,68919.0,68913.0,0.014519]
[1771050571240,0.00604326,68919.0,68913.0,0.014519]
[1771050571426,0.003,68915.0,68913.0,0.014519]
[1771050571628,0.0725542,68914.0,68913.0,0.014519]
[1771050571933,0.0580342,68914.0,68913.0,0.015519]
[1771050572127,0.0334142,68914.0,68913.0,0.015519]
[1771050572429,2e-07,68914.0,68913.0,0.015519]
[1771050572623,0.00604326,68919.0,68913.0,0.015519]
[1771050572824,0.00604326,68919.0,68913.0,0.024519]
[1771050573026,0.07255314,68915.0,68914.0,0.014518]
[1771050573235,0.07255314,68915.0,68913.0,0.024519]
[1771050573633,0.07255314,68915.0,68913.0,0.023519]
[1771050573933,0.07255314,68915.0,68914.0,0.014518]
[1771050575434,0.07255314,68915.0,68914.0,0.023518]
[1771050576832,0.07255314,68915.0,68914.0,0.009]
[1771050577037,0.07255314,68915.0,68914.0,0.01]
[1771050577535,0.07255314,68915.0,68914.0,0.024518]
[1771050577737,0.07255314,68915.0,68914.0,0.01]
[1771050578432,0.07255314,68915.0,68912.0,0.01452]
[1771050578639,0.05544314,68915.0,68912.0,0.02456563]
[1771050578835,0.03833314,68915.0,68913.0,0.014518]
[1771050579336,0.02122314,68915.0,68913.0,0.014518]
[1771050579534,0.01934314,68915.0,68913.0,0.014518]
[1771050579734,0.00223314,68915.0,68912.0,0.01004663]
[1771050579935,0.00223314,68915.0,68912.0,0.02456563]
[1771050580240,0.00035314,68915.0,68913.0,0.014518]
[1771050580435,0.00035314,68915.0,68912.0,0.01004663]
[1771050580737,0.0019264,68921.0,68912.0,0.01004663]
[1771050581040,0.06374315,68915.0,68912.0,0.01004663]
[1771050581630,0.06574315,68915.0,68913.0,0.004]
[1771050582241,0.06374315,68915.0,68912.0,0.01004663]
[1771050583844,0.06374315,68915.0,68913.0,0.006]
[1771050584245,0.06374315,68915.0,68912.0,0.01004663]
[1771050584939,0.06374315,68915.0,68913.0,0.006]
[1771050585845,0.06574315,68915.0,68912.0,0.01004663]
[1771050587745,0.06374315,68915.0,68912.0,0.01004663]
[1771050588546,0.06374315,68915.0,68913.0,0.003]
[1771050588748,0.06774315,68915.0,68912.0,0.01004663]
[1771050588933,0.07174315,68915.0,68912.0,0.01004663]
[1771050590542,0.06774315,68915.0,68912.0,0.01004663]
[1771050591551,0.06374315,68915.0,68912.0,0.01004663]
[1771050591753,0.06374315,68915.0,68912.0,0.01304663]
[1771050592156,0.06374315,68915.0,68912.0,0.01004663]
[1771050592654,0.06374315,68915.0,68912.0,0.01404663]
[1771050594756,0.06374315,68915.0,68912.0,0.02656563]
[1771050595254,0.06374315,68915.0,68913.0,0.014519]
[1771050595946,0.06374315,68915.0,68912.0,0.01204663]
[1771050596149,0.06374315,68915.0,68912.0,0.02656563]
[1771050596656,0.06374315,68915.0,68912.0,0.02456563]
[1771050596845,0.06374315,68915.0,68912.0,0.02956563]
[1771050597357,0.06374315,68915.0,68912.0,0.02456563]
[1771050598054,0.06374315,68915.0,68912.0,0.02956563]
[1771050599056,0.06374315,68915.0,68912.0,0.01504663]
[1771050600463,0.01804315,68915.0,68912.0,0.02956563]
[1771050600664,0.01452,68922.0,68912.0,0.01504663]
[1771050600958,0.05947259,68915.0,68912.0,0.01604663]
[1771050601361,0.01452,68923.0,68912.0,0.01604663]
[1771050601557,0.01452,68923.0,68912.0,0.01004663]
[1771050601558,0.07255315,68915.0,68912.0,0.01004663]
[1771050601856,0.01452,68923.0,68912.0,0.01004663]
[1771050602053,0.01452,68923.0,68912.0,0.02456563]
[1771050602252,0.07255013,68918.0,68912.0,0.03056563]
[1771050603362,0.07255013,68918.0,68912.0,0.02956563]
[1771050603866,0.07255013,68918.0,68912.0,0.02456563]
[1771050604855,0.07255013,68918.0,68912.0,0.02956563]
[1771050605165,0.07255013,68918.0,68913.0,0.014518]
[1771050605857,0.07255013,68918.0,68912.0,0.03456563]
[1771050606458,0.07255013,68918.0,68912.0,0.02004663]
[1771050606656,0.07255013,68918.0,68912.0,0.01504663]
[1771050607664,0.07255013,68918.0,68912.0,0.01404663]
[1771050607859,0.014518,68917.0,68903.0,0.01452]
[1771050608052,0.014518,68917.0,68904.0,0.15968]
[1771050608254,0.014518,68915.0,68904.0,0.15968]
[1771050608455,0.014518,68915.0,68901.0,0.14516]
[1771050608660,0.014518,68915.0,68902.0,0.029041]
[1771050609158,0.029038,68916.0,68902.0,0.029041]
[1771050609555,0.014518,68915.0,68902.0,0.029041]
[1771050611157,0.003,68915.0,68902.0,0.029041]
[1771050613964,0.017518,68915.0,68902.0,0.01452]
[1771050614866,0.017518,68915.0,68902.0,0.029041]
[1771050615067,0.003,68915.0,68902.0,0.029041]
[1771050615365,0.003,68915.0,68902.0,0.01452]
[1771050615366,0.017518,68915.0,68902.0,0.01452]
[1771050615567,0.017518,68915.0,68902.0,0.029041]
[1771050616159,0.014518,68915.0,68902.0,0.029041]
[1771050616768,0.014518,68915.0,68902.0,0.030041]
[1771050617072,0.029036,68915.0,68902.0,0.01552]
[1771050617274,0.029036,68915.0,68902.0,0.01452]
[1771050617676,0.014519,68913.0,68902.0,0.01452]
[1771050618063,0.014518,68914.0,68902.0,0.01452]
[1771050618664,0.01452,68916.0,68902.0,0.01452]
[1771050618857,0.01452,68915.0,68902.0,0.029041]
[1771050619056,0.07257524,68906.0,68902.0,0.029041]
[1771050619259,0.07257524,68906.0,68902.0,0.033041]
[1771050619669,0.07257524,68906.0,68902.0,0.029041]
[1771050620168,0.07257524,68906.0,68903.0,0.014521]
[1771050620369,0.07257524,68906.0,68902.0,0.029041]
[1771050620568,0.07257524,68906.0,68902.0,0.031041]
[1771050620969,0.01452,68915.0,68904.0,0.01452]
[1771050621161,0.01452,68915.0,68905.0,0.02904]
[1771050621363,0.07256216,68906.0,68905.0,0.02904]
[1771050621557,0.014517,68919.0,68905.0,0.02904]
[1771050621558,0.1452,68919.0,68905.0,0.02904]
[1771050621764,0.00158459,68920.0,68909.0,0.014519]
[1771050621765,0.01452,68918.0,68909.0,0.014519]
[1771050621970,0.07255768,68911.0,68908.0,0.02904]
[1771050622166,0.014518,68915.0,68908.0,0.01452]
[1771050622373,0.07255863,68910.0,68908.0,0.01452]
[1771050622964,0.07255863,68910.0,68903.0,0.003]
[1771050623366,0.07255863,68910.0,68904.0,0.01452]
[1771050623567,0.12636683,68910.0,68903.0,0.01452]
[1771050623771,0.0392892,68909.0,68903.0,0.01452]
[1771050623969,0.01452,68908.0,68897.0,0.1452]
[1771050624167,0.0247692,68907.0,68898.0,0.01452]
[1771050624569,0.01452,68906.0,68898.0,0.01452]
[1771050624766,0.0392892,68907.0,68899.0,0.01452]
[1771050625571,0.05803863,68899.0,68898.0,0.01452]
[1771050625974,0.0392892,68907.0,68898.0,0.01452]
[1771050626275,0.07258137,68899.0,68898.0,0.01452]
[1771050626875,0.08258137,68899.0,68898.0,0.01452]
[1771050627468,0.07258137,68899.0,68898.0,0.01452]
[1771050628876,0.08558137,68899.0,68898.0,0.01452]
[1771050629781,0.01452,68908.0,68899.0,0.014521]
[1771050629976,0.02827911,68906.0,68884.0,0.11751803]
[1771050630178,0.01452,68908.0,68896.0,0.014522]
[1771050630377,0.01452,68908.0,68897.0,0.029042]
[1771050630580,0.01452,68907.0,68897.0,0.029042]
[1771050630779,0.07257,68899.0,68897.0,0.01452]
[1771050630983,0.01452,68907.0,68897.0,0.01452]
[1771050631182,0.07256999,68899.0,68897.0,0.01452]
[1771050631979,0.07256999,68899.0,68898.0,0.014522]
[1771050633086,0.07256999,68899.0,68897.0,0.029042]
[1771050633485,0.07256999,68899.0,68897.0,0.01452]
[1771050634083,0.07256999,68899.0,68898.0,0.01452]
[1771050634281,0.07256999,68899.0,68897.0,3.003e-05]
[1771050635082,0.09679982,68905.0,68897.0,3.003e-05]
[1771050635289,0.09314982,68905.0,68897.0,3.003e-05]
[1771050635483,0.07257,68899.0,68897.0,3.003e-05]
[1771050635685,0.07028,68899.0,68897.0,0.00203003]
[1771050635988,0.06176,68899.0,68897.0,0.00203003]
[1771050636186,0.03042,68899.0,68897.0,3.003e-05]
[1771050636585,0.02138,68899.0,68897.0,3.003e-05]
[1771050636889,0.08299982,68905.0,68897.0,3.003e-05]
[1771050637191,0.07395982,68905.0,68895.0,0.01452]
[1771050637489,0.06797999,68899.0,68895.0,0.01452]
[1771050640599,0.06797999,68899.0,68891.0,0.0348402]
[1771050640600,0.19286179,68899.0,68891.0,0.0348402]
[1771050640788,0.06797999,68899.0,68891.0,0.01452]
[1771050640990,0.06797999,68892.0,68891.0,0.01452]
[1771050641287,0.06797999,68892.0,68890.0,0.01452]
[1771050642295,0.06797999,68892.0,68891.0,0.005]
[1771050642796,0.06797999,68892.0,68890.0,0.01952]
[1771050644394,0.00823731,68906.0,68898.0,0.12229645]
[1771050644590,0.01452,68907.0,68898.0,0.13681645]
[1771050644790,0.05804899,68899.0,68898.0,0.15133845]
[1771050644992,0.01452,68909.0,68898.0,0.01452]
[1771050645192,0.058049,68899.0,68898.0,0.01452]
[1771050645393,0.058049,68899.0,68898.0,0.029042]
[1771050645588,0.058049,68899.0,68898.0,0.031042]
[1771050646193,0.01452,68909.0,68899.0,0.014521]
[1771050646392,0.01452,68909.0,68898.0,0.029042]
[1771050646393,9.9e-07,68899.0,68898.0,0.033042]
[1771050646599,0.01452,68912.0,68905.0,0.01452]
[1771050646798,0.07255554,68921.0,68908.0,0.11480721]
[1771050647094,0.1452,68922.0,68912.0,0.014519]
[1771050647095,0.15972,68922.0,68912.0,0.014519]
[1771050647299,0.07255116,68916.0,68913.0,0.01452]
[1771050647598,0.04752116,68916.0,68913.0,0.01452]
[1771050648399,0.04752116,68916.0,68913.0,0.01952]
[1771050649398,0.02102116,68916.0,68913.0,0.01952]
[1771050649791,0.15424116,68922.0,68913.0,0.01952]
[1771050649995,0.04355175,68917.0,68913.0,0.01952]
[1771050650498,0.01255175,68917.0,68913.0,0.01952]
[1771050650695,0.01055175,68917.0,68913.0,0.01952]
[1771050650894,0.00983175,68917.0,68913.0,0.01452]
[1771050651093,0.00983175,68917.0,68908.0,0.014519]
[1771050651296,0.13430991,68922.0,68909.0,0.01452]
[1771050651602,0.07255115,68917.0,68909.0,0.01452]
[1771050651801,0.05955115,68917.0,68909.0,0.01452]
[1771050652699,0.01452,68926.0,68914.0,0.014518]
[1771050653000,0.06990104,68917.0,68915.0,0.01452]
[1771050653201,0.00422104,68917.0,68915.0,0.01452]
[1771050653902,0.00157104,68917.0,68915.0,0.01452]
[1771050654101,0.01452,68926.0,68915.0,0.01452]
[1771050654494,0.07255057,68917.0,68915.0,0.01452]
[1771050654701,0.07255057,68917.0,68915.0,0.01652]
[1771050655402,0.07255057,68917.0,68915.0,0.01452]
[1771050656302,0.01452,68926.0,68915.0,0.01452]
[1771050656500,0.07255025,68918.0,68915.0,0.01452]
[1771050657297,0.01452,68926.0,68915.0,0.01452]
[1771050657703,0.07255058,68917.0,68915.0,0.01452]
[1771050657904,0.02152,68926.0,68915.0,0.01452]
[1771050658202,0.01452,68926.0,68915.0,0.01452]
[1771050658404,0.07255042,68918.0,68915.0,0.01452]
[1771050658601,0.01452,68926.0,68915.0,0.01452]
[1771050658805,0.07254979,68918.0,68915.0,0.01452]
[1771050659105,0.01452,68926.0,68915.0,0.01452]
[1771050659301,0.029036,68926.0,68915.0,0.01452]
[1771050659500,0.013,68917.0,68915.0,0.01452]
[1771050660302,0.07254997,68918.0,68915.0,0.01452]
[1771050660600,0.07254997,68918.0,68914.0,0.01452]
[1771050660807,0.007,68917.0,68914.0,0.01377414]
[1771050661105,0.007,68917.0,68908.0,0.01452]
[1771050661307,0.07254997,68918.0,68908.0,0.01452]
[1771050661501,0.07354997,68918.0,68909.0,0.01452]
[1771050663608,0.07254997,68918.0,68909.0,0.01452]
[1771050664412,0.07254997,68918.0,68909.0,0.01552]
[1771050665210,0.07254997,68918.0,68909.0,0.01452]
[1771050665812,0.07254997,68918.0,68909.0,0.01552]
[1771050666714,0.07254997,68918.0,68909.0,0.01452]
[1771050667315,0.07354997,68918.0,68909.0,0.01452]
[1771050668016,0.07354997,68918.0,68910.0,0.01452]
[1771050669611,0.07254997,68918.0,68910.0,0.01452]
[1771050669914,0.07354997,68918.0,68910.0,0.01452]
[1771050670212,0.07254997,68918.0,68910.0,0.01452]
[1771050670515,0.07254997,68918.0,68910.0,0.01652]
[1771050677918,0.07254997,68918.0,68912.0,0.014519]
[1771050679724,0.07254997,68918.0,68912.0,0.016519]
[1771050680726,0.07254997,68918.0,68912.0,0.014519]
[1771050681226,0.07254997,68918.0,68912.0,0.019519]
[1771050681426,0.07254997,68918.0,68912.0,0.024519]
[1771050681915,0.07254997,68918.0,68912.0,0.01]
[1771050682827,0.07254997,68918.0,68912.0,0.005]
[1771050683920,0.07254997,68918.0,68910.0,0.01452]
[1771050684537,0.01452,68920.0,68910.0,0.01452]
[1771050684830,0.07255137,68917.0,68910.0,0.01452]
[1771050685530,0.07255137,68917.0,68911.0,0.01452]
[1771050686727,0.07455137,68917.0,68911.0,0.01452]
[1771050690629,0.014512,68944.0,68911.0,0.14309457]
[1771050690834,0.01452,68928.0,68914.0,0.014518]
[1771050691038,0.029036,68927.0,68915.0,0.01452]
[1771050691230,0.014515,68929.0,68915.0,0.01452]
[1771050691435,0.07254987,68918.0,68915.0,0.01452]
[1771050691635,0.05802986,68918.0,68915.0,0.01452]
[1771050691833,0.01452,68927.0,68915.0,0.01452]
[1771050692034,0.001,68917.0,68915.0,0.01452]
[1771050692235,0.01452,68927.0,68915.0,0.029038]
[1771050692732,0.07254998,68918.0,68915.0,0.031038]
[1771050692932,0.01452,68927.0,68915.0,0.031038]
[1771050693133,0.07254999,68918.0,68915.0,0.029038]
[1771050693331,0.01452,68927.0,68915.0,0.031038]
[1771050693533,0.07254999,68918.0,68915.0,0.031038]
[1771050693730,0.01452,68927.0,68915.0,0.031038]
[1771050693931,0.01396,68927.0,68915.0,0.031038]
[1771050694140,0.02735795,68920.0,68915.0,0.031038]
[1771050694334,0.01396,68927.0,68915.0,0.031038]
[1771050694534,0.07254788,68920.0,68915.0,0.031038]
[1771050694734,0.01396,68927.0,68915.0,0.031038]
[1771050694939,0.01396,68927.0,68916.0,0.014518]
[1771050695136,0.07254715,68921.0,68917.0,0.014518]
[1771050697536,0.01452,68928.0,68917.0,0.014518]
[1771050697734,0.06773683,68921.0,68917.0,0.014518]
[1771050698144,0.06292683,68921.0,68917.0,0.014518]
[1771050698442,0.06163683,68921.0,68917.0,0.014518]
[1771050698642,0.05682683,68921.0,68917.0,0.017518]
[1771050699336,0.04439683,68921.0,68917.0,0.017518]
[1771050699634,0.04439683,68921.0,68917.0,0.003]
[1771050699835,0.02019683,68921.0,68917.0,0.003]
[1771050700039,0.07251972,68932.0,68917.0,0.003]
[1771050700241,0.07251972,68932.0,68919.0,0.014517]
[1771050700242,0.08617972,68932.0,68919.0,0.014517]
[1771050700536,0.01193318,68932.0,68920.0,0.01452]
[1771050700940,0.07254367,68924.0,68920.0,0.01452]
[1771050702437,0.01193318,68932.0,68920.0,0.01452]
[1771050702638,0.07254367,68924.0,68920.0,0.01452]
[1771050703842,0.07254367,68924.0,68920.0,0.029037]
[1771050704042,0.07254367,68924.0,68920.0,0.01452]
[1771050705149,0.07454367,68924.0,68920.0,0.01452]